bitfinex/quotes_ETHUSD_20250329
["timestamp","ask_amount","ask_price","bid_price","bid_amount"]
[1743279814341,3.19604403,1826.9,1826.7,5.47417]
[1743279815151,0.19604403,1826.9,1826.8,5.47405]
[1743279815329,0.19604403,1826.9,1826.8,15.70878562]
[1743279815513,3.0,1827.1,1826.8,15.65386]
[1743279815843,0.19974286,1827.0,1826.9,5.47367]
[1743279816144,0.19974286,1827.0,1826.8,15.65386]
[1743279816145,0.19974286,1827.0,1826.8,21.12778]
[1743279816309,0.19974286,1827.0,1826.8,23.44282307]
[1743279816508,0.19974286,1827.0,1826.8,17.96896307]
[1743279816713,0.19974286,1827.0,1826.9,5.5284818]
[1743279817142,2.61345255,1827.2,1827.0,5.47342]
[1743279817341,0.20182311,1827.1,1827.0,5.47342]
[1743279817518,2.61345255,1827.4,1827.1,5.47315]
[1743279817846,0.20182311,1827.3,1827.1,5.47315]
[1743279818016,2.61345255,1827.4,1827.1,10.94608]
[1743279818211,0.20182311,1827.3,1827.0,7.387256]
[1743279818444,3.0,1827.3,1827.0,12.860506]
[1743279818643,0.20182311,1827.2,1827.1,5.47311]
[1743279818847,0.20182311,1827.2,1827.1,6.21670383]
[1743279819847,5.33645255,1827.4,1827.1,6.21670383]
[1743279820064,0.20396029,1827.3,1827.1,6.21670383]
[1743279820225,5.33645255,1827.4,1827.1,6.21670383]
[1743279820420,0.20419129,1827.3,1827.1,6.21670383]
[1743279820724,5.33645255,1827.4,1827.2,0.62167038]
[1743279821028,0.20419129,1827.3,1827.2,0.62167038]
[1743279821435,5.33645255,1827.4,1827.2,0.62167038]
[1743279821641,0.20419129,1827.3,1827.2,0.62167038]
[1743279821841,5.33645255,1827.4,1827.2,0.62167038]
[1743279822041,0.20419129,1827.3,1827.2,0.62167038]
[1743279822241,5.33645255,1827.4,1827.2,0.62167038]
[1743279822437,0.20419129,1827.3,1827.1,10.92359383]
[1743279822752,10.80875255,1827.4,1827.1,10.92359383]
[1743279822982,0.20419129,1827.2,1827.1,10.92359383]
[1743279823155,10.80875255,1827.4,1827.1,10.92359383]
[1743279823650,5.33645255,1827.4,1827.1,16.39671383]
[1743279823833,0.20419129,1827.3,1827.2,1.63967138]
[1743279824151,5.33645255,1827.4,1827.2,1.63967138]
[1743279824350,0.20419129,1827.3,1827.2,1.63967138]
[1743279824654,5.33645255,1827.4,1827.2,1.69439512]
[1743279824861,0.20419129,1827.3,1827.2,7.11230138]
[1743279825061,5.33645255,1827.4,1827.2,7.11230138]
[1743279825275,3.0,1827.4,1827.3,0.71123014]
[1743279825458,3.0,1827.4,1827.2,7.11230138]
[1743279825459,7.80900255,1827.3,1827.2,10.18]
[1743279827654,7.80900255,1827.3,1826.8,5.47404]
[1743279827655,5.47318,1827.1,1826.8,10.18]
[1743279827850,2.33645255,1827.0,1826.8,10.18]
[1743279831137,2.33645255,1827.0,1826.8,11.745414]
[1743279831340,7.94345255,1827.2,1826.9,5.47375]
[1743279831527,7.94345255,1827.2,1827.0,5.47335]
[1743279831726,7.66645255,1827.2,1826.9,5.47375]
[1743279832255,7.66645255,1827.2,1826.9,5.47363]
[1743279832645,13.13940255,1827.2,1826.8,18.027864]
[1743279833358,2.33645255,1827.0,1826.8,10.18]
[1743279834755,7.81003255,1827.0,1826.8,10.18]
[1743279834956,0.277,1826.8,1826.4,10.18]
[1743279835253,8.08840255,1826.5,1826.3,10.18]
[1743279836024,2.33645255,1826.7,1826.4,5.47525]
[1743279836229,2.33645255,1826.7,1826.6,5.47465]
[1743279836448,2.33645255,1826.7,1826.5,5.4748]
[1743279836640,5.33645255,1826.9,1826.6,6.27843]
[1743279836847,7.94245255,1827.1,1826.8,5.4738]
[1743279837037,13.41573255,1827.1,1826.7,15.65434]
[1743279838358,0.19956957,1827.0,1826.7,15.65434]
[1743279838660,0.19956957,1827.0,1826.8,0.05473469]
[1743279839251,0.19956957,1827.0,1826.7,15.65419]
[1743279839455,2.33645255,1826.9,1826.7,10.18]
[1743279839832,0.20043618,1826.8,1826.7,10.18]
[1743279840032,13.28420255,1826.9,1826.7,10.18]
[1743279840433,5.67448618,1826.8,1826.7,10.18]
[1743279840759,5.95148618,1826.8,1826.7,10.18]
[1743279840968,0.47743618,1826.8,1826.7,10.18]
[1743279841852,0.47743618,1826.8,1826.6,10.18]
[1743279842863,5.47435,1826.7,1826.6,10.18]
[1743279843161,2.53619545,1826.7,1826.5,5.47493]
[1743279843365,2.53619545,1826.7,1826.4,15.65519]
[1743279843532,2.53619545,1826.7,1826.4,17.301099]
[1743279843734,8.01079545,1826.7,1826.4,11.825909]
[1743279843961,8.01069545,1826.7,1826.4,10.18]
[1743279844648,2.61345255,1826.5,1826.4,10.18]
[1743279845043,2.81284878,1826.5,1826.4,10.18]
[1743279845383,2.53584878,1826.5,1826.4,10.18]
[1743279845547,8.01079878,1826.5,1826.4,10.18]
[1743279846266,5.47561,1826.3,1826.0,10.18]
[1743279846466,2.33645255,1826.2,1826.0,10.18]
[1743279846766,2.53423068,1826.2,1826.0,10.23475829]
[1743279846961,2.53423068,1826.2,1826.0,10.18]
[1743279847734,8.01010068,1826.2,1826.0,10.18]
[1743279850565,8.01010068,1826.2,1825.8,15.657]
[1743279850877,2.33645255,1826.0,1825.8,12.371402]
[1743279851373,0.19269087,1825.9,1825.8,12.371402]
[1743279852363,0.19269087,1825.9,1825.6,5.47764]
[1743279852364,0.19269087,1825.9,1825.6,15.65764]
[1743279852550,2.33645255,1825.8,1825.6,10.18]
[1743279852747,0.19257522,1825.7,1825.6,10.18]
[1743279852946,0.19257522,1825.7,1825.6,15.65765]
[1743279856480,0.19257522,1825.7,1825.6,5.47765]
[1743279856980,0.19257522,1825.7,1825.5,6.25778]
[1743279857278,0.19257522,1825.7,1825.5,16.831482]
[1743279858982,0.19257522,1825.7,1825.6,5.47765]
[1743279859186,0.19257522,1825.7,1825.6,5.53242191]
[1743279859477,16.41942255,1826.2,1825.8,5.47695]
[1743279859853,0.19153427,1826.1,1825.8,5.47695]
[1743279860079,16.41942255,1826.2,1825.8,5.47695]
[1743279860500,0.19153427,1826.1,1825.8,5.47695]
[1743279860683,0.19153427,1826.1,1825.8,6.572379]
[1743279860855,0.19153427,1826.0,1825.8,6.572379]
[1743279861062,21.89549255,1826.2,1825.8,6.572379]
[1743279861354,0.19153427,1826.1,1825.8,6.572379]
[1743279861577,21.89549255,1826.2,1825.8,6.572379]
[1743279861889,0.19153427,1826.1,1825.8,6.572379]
[1743279862060,21.89549255,1826.2,1825.8,6.572379]
[1743279862266,2.33645255,1826.0,1825.8,10.18]
[1743279862766,0.19153427,1825.9,1825.8,10.18]
[1743279865261,0.19153427,1825.9,1825.8,15.65705]
[1743279866479,0.19153427,1825.9,1825.8,10.18]
[1743279868090,0.46853427,1825.9,1825.8,10.18]
[1743279868290,0.46853427,1825.9,1825.6,15.65756]
[1743279868584,0.46853427,1825.9,1825.6,23.4467982]
[1743279868790,0.46853427,1825.9,1825.6,17.9692382]
[1743279869691,0.46853427,1825.9,1825.6,23.4467682]
[1743279869897,0.46853427,1825.9,1825.6,17.9692382]
[1743279871688,2.33645255,1825.8,1825.6,10.18]
[1743279871877,2.33645255,1825.8,1825.3,5.47854]
[1743279871878,5.47784,1825.6,1825.3,10.18]
[1743279872073,5.47784,1825.6,1825.2,15.65882]
[1743279872074,2.33645255,1825.4,1825.2,15.65882]
[1743279873492,2.33645255,1825.4,1825.2,10.18]
[1743279873793,0.19008849,1825.3,1825.2,10.18]
[1743279874288,0.18829514,1825.3,1825.2,10.18]
[1743279874510,2.33645255,1825.6,1825.3,5.47837]
[1743279874664,0.18829514,1825.5,1825.4,5.47805]
[1743279874864,0.18829514,1825.5,1825.3,5.47841]
[1743279875097,0.18829514,1825.5,1825.4,5.47825]
[1743279875462,0.18829514,1825.5,1825.3,6.30017]
[1743279875666,0.18829514,1825.5,1825.3,8.104777]
[1743279876590,0.18829514,1825.5,1825.4,5.47825]
[1743279877311,0.18829514,1825.5,1825.4,5.53302759]
[1743279877491,2.33645255,1825.8,1825.6,5.47763]
[1743279877695,0.18657181,1825.7,1825.6,5.47763]
[1743279879359,0.18657181,1825.7,1825.6,6.573187]
[1743279879744,0.18657181,1825.7,1825.4,0.8218]
[1743279879950,7.81415255,1825.6,1825.3,10.18]
[1743279880103,5.66562097,1825.5,1825.3,10.18]
[1743279880302,2.61345255,1825.4,1825.3,10.18]
[1743279880716,2.80112352,1825.4,1825.3,10.18]
[1743279882847,2.80112352,1825.4,1825.1,5.47913]
[1743279883345,2.80112352,1825.4,1825.1,6.657155]
[1743279886955,2.80112352,1825.4,1825.1,6.657115]
[1743279888229,2.80112352,1825.4,1825.1,12.136105]
[1743279888407,2.80112352,1825.4,1825.1,6.657015]
[1743279888608,2.80112352,1825.4,1825.1,6.657095]
[1743279889248,2.80112352,1825.4,1825.1,1.178025]
[1743279889448,13.75797352,1825.4,1824.9,15.65974]
[1743279889746,8.27949352,1825.4,1825.0,10.18]
[1743279889935,8.27949352,1825.4,1825.0,15.65941]
[1743279892248,5.47856,1825.3,1825.0,10.18]
[1743279892620,0.18402582,1825.2,1825.0,10.18]
[1743279893059,0.18402582,1825.2,1825.0,17.225396]
[1743279893224,0.18402582,1825.2,1825.1,6.32024019]
[1743279893419,8.33,1825.5,1825.3,5.47829]
[1743279893644,0.18396794,1825.2,1825.1,16.44539]
[1743279893816,8.33,1825.5,1825.1,21.92448]
[1743279894020,8.33,1825.5,1825.1,24.2735236]
[1743279894021,0.18396794,1825.2,1825.1,24.2735236]
[1743279894250,13.80801,1825.5,1825.1,18.7944336]
[1743279894452,0.18396794,1825.2,1825.1,24.2733136]
[1743279894652,13.80801,1825.5,1825.1,24.2733136]
[1743279894851,0.18396794,1825.2,1825.1,18.0079236]
[1743279895149,0.18396794,1825.2,1825.1,23.4869136]
[1743279895352,13.80801,1825.5,1825.1,23.4869136]
[1743279895657,0.18396794,1825.4,1825.1,18.0079236]
[1743279896225,2.52042049,1825.4,1825.1,18.0079236]
[1743279896952,2.52042049,1825.4,1825.1,12.5290436]
[1743279897156,7.99879049,1825.4,1825.1,10.18]
[1743279897541,7.99879049,1825.4,1825.0,13.311096]
[1743279897761,2.52042049,1825.4,1825.1,5.47913]
[1743279901059,7.99869049,1825.4,1825.0,7.831676]
[1743279901270,0.277,1825.3,1824.9,15.65972]
[1743279901433,5.75566,1825.3,1824.9,21.13924]
[1743279901632,5.75566,1825.3,1825.0,5.47941]
[1743279901633,0.277,1825.3,1825.0,5.47941]
[1743279901972,0.18396794,1825.2,1825.1,5.47915]
[1743279903074,0.18396794,1825.2,1825.0,5.47941]
[1743279903760,0.18396794,1825.2,1825.0,7.593173]
[1743279904060,0.18396794,1825.2,1825.1,5.47915]
[1743279904357,2.61345255,1825.4,1825.1,5.47915]
[1743279904564,0.18338919,1825.3,1825.1,5.47915]
[1743279904729,8.09170255,1825.4,1825.0,7.593173]
[1743279904934,0.18338919,1825.3,1825.0,7.593173]
[1743279905150,8.09170255,1825.4,1825.0,7.593173]
[1743279905336,0.18338919,1825.3,1825.1,7.0383073]
[1743279905528,11.09160255,1825.5,1825.2,5.47882]
[1743279905730,0.18338919,1825.4,1825.2,5.47882]
[1743279906155,0.18338919,1825.4,1825.1,7.0383073]
[1743279906456,0.18338919,1825.4,1825.1,16.4182073]
[1743279907345,0.18338919,1825.4,1825.1,15.65889]
[1743279908046,5.66167919,1825.4,1825.1,10.18]
[1743279908234,7.81501255,1825.3,1825.1,10.18]
[1743279908853,0.46038919,1825.2,1825.1,10.18]
[1743279909164,0.46038919,1825.2,1817.2,25.16808803]
[1743279909165,5.47985,1824.9,1824.7,10.18]
[1743279909330,5.75751,1824.7,1824.5,10.18]
[1743279909535,2.51966812,1824.6,1824.5,10.18]
[1743279910070,2.51966812,1824.6,1824.3,5.48134]
[1743279910383,5.48157,1824.3,1824.1,10.23]
[1743279910675,2.51741047,1824.2,1824.1,10.23]
[1743279910878,2.51741047,1824.2,1824.1,0.05]
[1743279913458,0.18095792,1824.2,1824.1,5.53215]
[1743279913657,2.51741047,1824.2,1824.1,0.05]
[1743279913852,2.33645255,1824.2,1824.1,0.05]
[1743279914052,2.50437778,1824.2,1824.1,0.05]
[1743279916069,0.16792523,1824.2,1824.1,6.33225]
[1743279916235,0.16792523,1824.2,1824.1,7.51919707]
[1743279916441,3.0,1824.5,1824.2,5.48173]
[1743279916751,2.33645255,1824.9,1824.6,5.48053]
[1743279916960,5.33645255,1824.9,1824.6,5.48053]
[1743279917468,5.33645255,1824.9,1824.6,5.48047]
[1743279918078,7.94345255,1825.2,1824.9,5.47955]
[1743279918953,7.66645255,1825.2,1824.9,5.47955]
[1743279920983,7.66645255,1825.2,1824.6,10.18]
[1743279920984,2.33645255,1825.0,1824.6,10.18]
[1743279921277,0.277,1825.1,1824.6,10.18]
[1743279921278,2.33645255,1824.8,1824.6,10.18]
[1743279921488,7.66645255,1824.8,1824.6,10.18]
[1743279922151,13.14650255,1824.8,1824.6,10.18]
[1743279922351,5.75735,1824.7,1824.6,10.18]
[1743279922584,5.48066,1824.6,1824.2,15.66178]
[1743279922780,2.33645255,1824.5,1824.2,15.66178]
[1743279924953,7.81743255,1824.5,1824.1,0.05]
[1743279925152,2.33645255,1824.3,1824.1,0.05]
[1743279928181,0.17429887,1824.2,1824.1,0.05]
[1743279932392,0.17429887,1824.2,1824.1,5.53215]
[1743279932693,5.33,1824.4,1824.2,5.48163]
[1743279932863,5.33,1824.4,1824.1,5.53215]
[1743279933064,0.17279271,1824.3,1824.1,5.53215]
[1743279933477,5.33,1824.4,1824.1,5.53215]
[1743279933678,0.17279271,1824.2,1824.1,0.05]
[1743279933862,5.48167,1824.3,1824.1,0.05]
[1743279934087,2.78624526,1824.2,1824.1,0.05]
[1743279937198,0.17279271,1824.2,1824.1,0.05]
[1743279937585,13.42472255,1824.4,1824.1,0.05]
[1743279937586,7.94345255,1824.4,1824.1,0.05]
[1743279937782,0.17279271,1824.3,1824.1,0.05]
[1743279937988,18.90637255,1824.4,1824.1,0.05]
[1743279938302,11.13623271,1824.3,1824.1,0.05]
[1743279938604,5.65438271,1824.3,1824.1,0.05]
[1743279942198,5.48185,1824.2,1824.1,0.05]
[1743279942399,0.17221329,1824.2,1824.1,0.05]
[1743279944214,0.17221329,1824.2,1824.1,0.8173]
[1743279944509,2.61345255,1824.6,1824.1,0.8173]
[1743279944510,5.33,1824.4,1824.3,5.48155]
[1743279944701,5.33,1824.4,1824.2,5.48185]
[1743279944901,5.50053314,1824.4,1824.2,5.48185]
[1743279947314,5.50053314,1824.4,1824.2,10.96359]
[1743279947514,0.17053314,1824.4,1824.2,5.48174]
[1743279947817,5.329,1824.5,1824.2,5.48174]
[1743279947997,0.17053314,1824.4,1824.2,5.48174]
[1743279948902,6.1748034,1824.6,1824.1,16.47937]
[1743279948903,18.62773255,1824.5,1824.1,16.47937]
[1743279949102,0.17053314,1824.3,1824.1,16.47937]
[1743279949303,20.55990615,1824.5,1824.1,16.47937]
[1743279949494,0.17180779,1824.2,1824.1,16.47937]
[1743279950007,18.62773255,1824.5,1824.1,16.47937]
[1743279950207,0.17180779,1824.4,1824.1,16.47937]
[1743279953703,0.17180779,1824.4,1824.1,16.47932]
[1743279954022,0.17180779,1824.4,1824.2,5.48184]
[1743279954933,0.17180779,1824.4,1824.3,6.31476419]
[1743279955131,0.17180779,1824.4,1824.3,16.49476419]
[1743279955325,10.80875,1824.9,1824.5,5.48084]
[1743279955527,10.80875,1824.9,1824.5,15.66084]
[1743279955835,16.28872,1824.9,1824.5,15.66084]
[1743279956000,12.99896726,1824.9,1824.5,15.66084]
[1743279956931,2.33645255,1824.8,1824.5,10.18]
[1743279957142,5.48043,1824.7,1824.5,10.18]
[1743279957302,0.277,1824.6,1824.5,10.18]
[1743279957506,8.09410255,1824.6,1824.5,10.18]
[1743279957831,12.45155581,1824.6,1824.5,10.18]
[1743279958311,12.62475403,1824.6,1824.5,10.18]
[1743279959115,5.4811,1824.5,1824.1,11.0509]
[1743279959320,7.66445255,1824.4,1824.1,11.0509]
[1743279959715,0.17319822,1824.3,1824.1,11.0509]
[1743279960033,7.66445255,1824.4,1824.1,11.0509]
[1743279960337,0.17319822,1824.3,1824.1,11.0509]
[1743279960708,13.14570255,1824.4,1824.1,10.23]
[1743279960908,0.17319822,1824.2,1824.1,10.23]
[1743279961130,13.14570255,1824.4,1824.1,10.23]
[1743279961305,0.17319822,1824.2,1824.1,10.23]
[1743279961506,13.14570255,1824.4,1824.1,10.23]
[1743279961703,0.17319822,1824.2,1824.1,10.23]
[1743279961933,5.328,1824.5,1824.3,5.48132]
[1743279963917,5.328,1824.5,1824.3,10.96266]
[1743279964118,5.328,1824.5,1824.3,5.48132]
[1743279964835,5.328,1824.5,1824.3,15.66132]
[1743279966324,5.328,1824.5,1824.3,17.309542]
[1743279967848,5.328,1824.5,1824.4,5.48125]
[1743279968649,5.328,1824.5,1824.3,17.309542]
[1743279970066,5.328,1824.5,1824.3,22.790972]
[1743279970354,0.68382046,1824.9,1824.4,10.9819]
[1743279970670,8.327,1824.9,1824.6,5.4804]
[1743279971551,13.80677,1824.9,1824.5,5.48088]
[1743279971731,5.48005,1824.8,1824.4,16.46297]
[1743279972050,5.48005,1824.8,1824.4,21.94402]
[1743279972419,5.48005,1824.8,1824.5,5.48093]
[1743279973251,0.1740093,1824.7,1824.5,5.48093]
[1743279973949,0.1740093,1824.7,1824.6,5.48065]
[1743279974322,2.61345255,1825.3,1824.9,5.47975]
[1743279974546,7.93945255,1825.3,1825.0,5.47929]
[1743279974739,0.1748202,1825.2,1824.9,5.47975]
[1743279975052,5.6537002,1825.2,1824.9,5.47975]
[1743279975723,5.6537002,1825.2,1824.8,15.65999]
[1743279976147,5.6537002,1825.2,1824.8,21.13982]
[1743279976451,5.6537002,1825.2,1824.8,23.333992]
[1743279977056,5.6537002,1825.2,1824.9,5.47974]
[1743279977262,0.1748202,1825.2,1824.8,12.374172]
[1743279977446,0.1748202,1825.2,1825.0,6.28115]
[1743279977642,8.09142255,1825.5,1825.3,5.47825]
[1743279977643,2.33645255,1825.5,1825.3,5.47825]
[1743279977849,0.17962669,1825.4,1825.3,5.47825]
[1743279978043,3.0,1825.5,1825.3,5.47825]
[1743279978344,0.17962669,1825.4,1825.3,5.47825]
[1743279978751,0.17962669,1825.4,1825.3,18.08075835]
[1743279978938,0.17962669,1825.4,1825.3,18.575975]
[1743279979143,13.13891255,1826.0,1825.6,5.47759]
[1743279979329,3.0,1825.9,1825.6,5.47759]
[1743279979659,0.18246281,1825.9,1825.6,6.27949]
[1743279979856,0.18246281,1825.9,1825.6,0.8019]
[1743279980157,8.65927281,1825.9,1825.6,0.8019]
[1743279980354,5.65927281,1825.9,1825.6,0.8019]
[1743279980555,5.65926281,1825.9,1825.6,0.8019]
[1743279980731,5.65926281,1825.9,1825.5,15.6578]
[1743279981058,5.65926281,1825.9,1825.5,17.85334]
[1743279983650,3.18246281,1825.9,1825.5,17.8533]
[1743279984933,8.65927281,1825.9,1825.5,17.8533]
[1743279985133,8.65927281,1825.9,1825.5,12.37554]
[1743279985334,8.65927281,1825.9,1825.5,17.85335]
[1743279989754,14.13626281,1825.9,1825.5,17.85335]
[1743279990135,8.65927281,1825.9,1825.5,17.85335]
[1743279991165,7.81366255,1825.8,1825.5,10.18]
[1743279991663,0.18801821,1825.7,1825.5,10.18]
[1743279992069,0.18801821,1825.7,1825.5,15.65794]
[1743279992450,0.18801821,1825.7,1825.6,5.47765]
[1743279992771,0.18801821,1825.7,1825.5,15.65794]
[1743279993141,8.47684,1825.9,1825.5,15.65794]
[1743279993341,0.18801821,1825.6,1825.5,15.65794]
[1743279993541,8.47684,1825.9,1825.5,16.45076196]
[1743279993863,8.47684,1825.9,1825.5,15.65794]
[1743279994062,0.18801821,1825.8,1825.5,15.65794]
[1743279994263,13.95381,1825.9,1825.5,15.65794]
[1743279994462,5.66509821,1825.8,1825.5,15.65794]
[1743279994771,5.66509821,1825.8,1825.5,10.18]
[1743279996169,0.18801821,1825.8,1825.5,10.18]
[1743279996376,0.18801821,1825.8,1825.5,15.65776]
[1743279996542,3.0,1825.9,1825.6,5.47743]
[1743279996743,0.18801821,1825.7,1825.5,15.65788]
[1743279996945,8.47678,1825.9,1825.5,17.853449]
[1743279997161,0.18801821,1825.6,1825.5,15.65788]
[1743279997367,8.47678,1825.9,1825.5,15.65788]
[1743279997567,0.18801821,1825.6,1825.5,15.65788]
[1743279997773,8.47678,1825.9,1825.5,15.65788]
[1743279997946,0.18801821,1825.6,1825.5,15.65788]
[1743279998146,8.47678,1825.9,1825.5,15.65788]
[1743279998547,0.18801821,1825.8,1825.5,15.65788]
[1743279999078,2.33645255,1826.2,1825.7,0.8189]
[1743279999276,5.321,1826.1,1825.8,5.47692]
[1743279999644,10.79717,1826.1,1825.8,5.47692]
[1743280000344,2.33645255,1826.0,1825.7,16.47622]
[1743280002644,2.33645255,1826.0,1825.7,10.9989]
[1743280002843,7.65745255,1826.0,1825.8,1.09989]
[1743280003045,7.65745255,1826.0,1825.7,6.29612]
[1743280003246,0.19021622,1825.9,1825.7,6.29612]
[1743280004862,0.19021622,1825.9,1825.7,6.29609]
[1743280005253,5.32,1826.1,1825.8,5.47694]
[1743280005458,0.19044757,1826.0,1825.9,5.47674]
[1743280005654,13.13245255,1826.2,1825.8,10.95375]
[1743280005856,0.19044757,1826.1,1825.8,10.95375]
[1743280006157,13.13245255,1826.2,1825.8,6.654085]
[1743280006356,0.19044757,1826.0,1825.8,6.654085]
[1743280006555,13.13245255,1826.2,1825.8,6.654085]
[1743280006964,0.19044757,1826.1,1825.8,6.654085]
[1743280007168,0.19044757,1826.1,1825.8,1.177265]
[1743280007482,0.19073674,1826.0,1825.7,11.7734]
[1743280008585,0.19073674,1826.0,1825.8,5.47701]
[1743280009686,13.13230255,1826.2,1825.8,5.47701]
[1743280009852,0.19073674,1826.1,1825.8,5.47701]
[1743280010056,13.13230255,1826.2,1825.8,5.47701]
[1743280010257,0.19073674,1826.1,1825.8,5.47701]
[1743280010458,13.13230255,1826.2,1825.8,5.47701]
[1743280010662,0.19056324,1826.1,1825.8,5.47701]
[1743280010959,13.13230255,1826.2,1825.8,5.47701]
[1743280011474,0.19056324,1826.1,1825.9,5.47674]
[1743280011682,7.65645255,1826.2,1825.9,5.47674]
[1743280011989,0.19056324,1826.1,1825.9,5.47674]
[1743280012291,13.13230255,1826.2,1825.9,5.47674]
[1743280012490,0.19056324,1826.1,1825.9,5.47674]
[1743280012689,13.13230255,1826.2,1825.9,5.47674]
[1743280012889,0.19056324,1826.1,1825.8,5.47684]
[1743280013090,13.13230255,1826.2,1825.8,5.47684]
[1743280013291,0.19062107,1826.1,1825.8,5.47684]
[1743280013488,13.13230255,1826.2,1825.8,5.47684]
[1743280013795,0.19062107,1826.1,1825.9,5.47673]
[1743280014093,13.13230255,1826.2,1825.9,5.47673]
[1743280014294,0.19062107,1826.1,1825.9,5.47673]
[1743280014467,13.13230255,1826.2,1825.8,5.47684]
[1743280014677,0.19062107,1826.1,1825.8,5.47684]
[1743280014988,13.13230255,1826.2,1825.8,5.47684]
[1743280015462,0.1905054,1826.1,1825.8,5.47684]
[1743280015657,13.13230255,1826.2,1825.8,5.47684]
[1743280015882,0.1905054,1826.1,1825.8,5.47684]
[1743280016300,0.1905054,1826.0,1825.8,10.95376]
[1743280016495,13.13231255,1826.2,1825.8,10.95376]
[1743280016679,0.1905054,1826.1,1825.8,10.95376]
[1743280016875,15.06193699,1826.2,1825.8,5.47684]
[1743280017282,0.1905054,1826.1,1825.8,5.47684]
[1743280017605,15.06193699,1826.2,1825.8,5.47684]
[1743280017771,0.1905054,1826.0,1825.8,5.47684]
[1743280018067,15.06193699,1826.2,1825.8,5.47684]
[1743280018262,0.1905054,1825.9,1825.8,5.47684]
[1743280018495,13.13231255,1826.2,1825.8,5.47684]
[1743280018690,0.19044757,1825.9,1825.8,5.47684]
[1743280018890,13.13231255,1826.2,1825.8,5.47684]
[1743280019081,0.19044757,1825.9,1825.8,5.47684]
[1743280019699,5.47616,1826.1,1825.8,5.47684]
[1743280019886,0.19044757,1825.9,1825.7,16.47624]
[1743280020066,5.47622,1826.1,1825.7,21.95339]
[1743280020269,8.00400795,1825.8,1825.7,10.18]
[1743280020468,13.32200795,1825.8,1825.5,10.18]
[1743280020667,7.84495795,1825.8,1825.5,10.18]
[1743280020879,0.1905054,1825.8,1825.7,6.30255]
[1743280021193,3.0,1826.2,1826.0,5.47619]
[1743280021495,2.33645255,1826.5,1826.2,10.95155]
[1743280021709,13.12943255,1826.5,1826.1,6.30121]
[1743280021994,7.65445255,1826.5,1826.2,5.47573]
[1743280023167,13.12940255,1826.5,1826.1,7.478881]
[1743280024197,7.65445255,1826.5,1826.1,7.478881]
[1743280024398,13.12943255,1826.5,1826.1,7.478881]
[1743280024899,7.65445255,1826.5,1826.1,12.954801]
[1743280025199,7.65445255,1826.5,1826.2,1.2954801]
[1743280026009,7.65445255,1826.5,1826.2,6.7713301]
[1743280027700,13.12943255,1826.5,1826.2,1.2954801]
[1743280027902,13.12943255,1826.5,1826.1,6.30112]
[1743280028410,7.65445255,1826.5,1826.1,11.77708]
[1743280029102,7.65445255,1826.5,1826.1,6.30112]
[1743280029304,7.65445255,1826.5,1826.2,5.47584]
[1743280029885,0.68161387,1826.7,1826.1,0.8252]
[1743280029886,0.277,1826.7,1826.1,0.8252]
[1743280030099,5.47396,1826.9,1826.5,5.47481]
[1743280030284,10.81065255,1826.8,1826.5,10.18]
[1743280031176,10.81110255,1826.6,1826.5,10.18]
[1743280031374,5.47546,1826.4,1826.0,6.29254]
[1743280031619,7.81191255,1826.4,1826.0,16.47254]
[1743280032026,13.28735255,1826.4,1826.0,16.47254]
[1743280032710,7.81189255,1826.4,1826.0,16.47254]
[1743280032881,5.47565,1826.3,1826.0,10.9961]
[1743280033080,0.17901021,1826.2,1826.0,10.18]
[1743280033604,5.65486021,1826.2,1825.9,15.65674]
[1743280035006,0.17901021,1826.2,1825.9,10.18]
[1743280035204,0.277,1826.0,1825.6,15.6575]
[1743280035407,0.277,1826.0,1825.7,5.47728]
[1743280035408,5.316,1826.0,1825.7,5.47728]
[1743280035619,5.316,1826.0,1825.7,10.95442]
[1743280035779,5.316,1826.0,1825.7,5.47714]
[1743280035980,5.316,1826.0,1825.7,10.95432]
[1743280036198,0.17767824,1825.9,1825.7,13.067752]
[1743280036376,0.17767824,1825.9,1825.8,6.25485]
[1743280037621,0.17767824,1825.9,1825.8,0.7778]
[1743280037976,0.17767824,1825.9,1825.6,16.43543]
[1743280038481,0.17767824,1825.9,1825.6,21.91286]
[1743280038808,5.75381,1825.9,1825.6,10.18]
[1743280038983,0.17767824,1825.8,1825.6,10.18]
[1743280039380,0.277,1825.9,1825.6,15.65758]
[1743280039581,0.17721487,1825.7,1825.6,15.65758]
[1743280039877,0.277,1825.9,1825.6,15.65758]
[1743280040079,0.17721487,1825.8,1825.6,15.65758]
[1743280040274,0.277,1825.9,1825.6,15.65758]
[1743280040510,0.17721487,1825.8,1825.6,15.65758]
[1743280040718,0.277,1825.9,1825.6,15.65758]
[1743280040912,0.17721487,1825.8,1825.6,15.65758]
[1743280041208,0.277,1825.9,1825.6,15.65758]
[1743280041587,0.17721487,1825.8,1825.6,15.65758]
[1743280041788,0.17721487,1825.8,1825.7,6.24245]
[1743280042005,5.316,1826.1,1825.9,5.47653]
[1743280042208,5.316,1826.1,1825.8,10.95383]
[1743280042580,5.316,1826.1,1825.8,5.47689]
[1743280042978,11.08901255,1826.3,1825.9,5.47657]
[1743280043181,8.316,1826.3,1826.0,6.24135]
[1743280045012,21.60382255,1826.3,1826.0,0.7651]
[1743280045188,16.12804255,1826.3,1826.0,0.7651]
[1743280046511,10.65245255,1826.3,1825.8,16.42212]
[1743280046817,2.33645255,1826.1,1825.8,16.42212]
[1743280046982,2.33645255,1826.1,1825.8,15.65702]
[1743280047416,7.81260255,1826.1,1825.8,10.18]
[1743280048204,0.17449303,1826.0,1825.8,10.18]
[1743280051425,5.65109303,1826.0,1825.8,10.18]
[1743280051631,0.8421093,1825.9,1825.8,10.18]
[1743280051795,0.277,1825.9,1825.6,15.65761]
[1743280052114,5.76736196,1825.9,1825.6,15.65761]
[1743280052891,8.10381451,1825.9,1825.3,10.18]
[1743280053082,5.47846,1825.4,1825.0,0.7651]
[1743280053300,7.98986731,1825.3,1825.0,10.18]